bitfinex/quotes_BTCUSD_20230831
["timestamp","ask_amount","ask_price","bid_price","bid_amount"]
[1693475428338,2.93797676,27253.0,27252.0,0.03147036]
[1693475428540,2.93905676,27253.0,27252.0,0.03147036]
[1693475428766,2.93821676,27253.0,27252.0,0.03147036]
[1693475428941,2.93713676,27253.0,27252.0,0.03147036]
[1693475429346,2.93749676,27253.0,27252.0,0.03147036]
[1693475429615,2.93545676,27253.0,27252.0,0.03147036]
[1693475429752,2.93557676,27253.0,27252.0,0.03147036]
[1693475429955,2.93521676,27253.0,27252.0,0.03147036]
[1693475430442,2.93491676,27253.0,27252.0,0.03147036]
[1693475430623,2.93575676,27253.0,27252.0,0.03147036]
[1693475430777,2.93593676,27253.0,27252.0,0.03147036]
[1693475430984,2.93575676,27253.0,27252.0,0.03147036]
[1693475431185,2.93503676,27253.0,27252.0,0.03147036]
[1693475431385,2.93521676,27253.0,27252.0,0.03147036]
[1693475431610,2.93527676,27253.0,27252.0,0.03147036]
[1693475431811,2.93539676,27253.0,27252.0,0.03147036]
[1693475432011,2.93515676,27253.0,27252.0,0.03861038]
[1693475432257,2.93545676,27253.0,27252.0,0.03861038]
[1693475432459,2.93527676,27253.0,27252.0,0.03861038]
[1693475432662,2.93545676,27253.0,27252.0,0.03861038]
[1693475433017,2.93527676,27253.0,27252.0,0.03861038]
[1693475433223,2.93533676,27253.0,27252.0,0.03861038]
[1693475433496,2.93551676,27253.0,27252.0,0.03861038]
[1693475433738,2.93539676,27253.0,27252.0,0.03861038]
[1693475434061,3.07447676,27253.0,27252.0,0.03861038]
[1693475434196,3.06667676,27253.0,27252.0,0.03861038]
[1693475434398,2.93791676,27253.0,27252.0,0.03861038]
[1693475434810,3.06511676,27253.0,27252.0,0.03861038]
[1693475435019,2.94055676,27253.0,27252.0,0.03861038]
[1693475435231,3.06631676,27253.0,27252.0,0.03861038]
[1693475435435,3.30126792,27253.0,27252.0,0.03861038]
[1693475435636,3.30522792,27253.0,27252.0,0.03861038]
[1693475435846,3.30546792,27253.0,27252.0,0.007]
[1693475436047,3.30330792,27253.0,27252.0,0.007]
[1693475436256,3.30306792,27253.0,27252.0,0.007]
[1693475436456,3.30822792,27253.0,27252.0,0.007]
[1693475436660,3.30810792,27253.0,27252.0,0.007]
[1693475436857,3.30846792,27253.0,27252.0,0.007]
[1693475437113,3.31158792,27253.0,27252.0,0.007]
[1693475437286,3.07651676,27253.0,27252.0,0.007]
[1693475437493,3.07675676,27253.0,27252.0,0.007]
[1693475437699,3.07711676,27253.0,27252.0,0.007]
[1693475437922,3.07699676,27253.0,27252.0,0.007]
[1693475438125,3.07639676,27253.0,27252.0,0.007]
[1693475438569,3.07555676,27253.0,27252.0,0.007]
[1693475438781,3.07603676,27253.0,27252.0,0.007]
[1693475438954,3.07555676,27253.0,27252.0,0.007]
[1693475439295,3.07483676,27253.0,27252.0,0.007]
[1693475439449,3.07579676,27253.0,27252.0,0.007]
[1693475439656,3.34012186,27253.0,27252.0,0.007]
[1693475440000,3.33664186,27253.0,27252.0,0.007]
[1693475440203,3.33928186,27253.0,27252.0,0.007]
[1693475440337,3.33880186,27253.0,27252.0,0.007]
[1693475440537,3.33916186,27253.0,27252.0,0.007]
[1693475440760,3.33904186,27253.0,27252.0,0.007]
[1693475440963,3.33040186,27253.0,27252.0,0.007]
[1693475441172,3.33388186,27253.0,27252.0,0.007]
[1693475441374,3.33268186,27253.0,27252.0,0.03861039]
[1693475441735,3.33040186,27253.0,27252.0,0.03861039]
[1693475441934,3.20374186,27253.0,27252.0,0.03861039]
[1693475442162,3.20440186,27253.0,27252.0,0.007]
[1693475442367,3.20488186,27253.0,27252.0,0.007]
[1693475442517,3.20422186,27253.0,27252.0,0.007]
[1693475442700,3.20404186,27253.0,27252.0,0.007]
[1693475442900,3.20326186,27253.0,27252.0,0.03861039]
[1693475443118,3.20302186,27253.0,27252.0,0.03861039]
[1693475443518,3.20236186,27253.0,27252.0,0.03861039]
[1693475443733,3.20122186,27253.0,27252.0,0.03861039]
[1693475443928,3.20134186,27253.0,27252.0,0.03861039]
[1693475444128,3.20128186,27253.0,27252.0,0.03861039]
[1693475444336,3.20134186,27253.0,27252.0,0.03861039]
[1693475444543,3.19834186,27253.0,27252.0,0.03861039]
[1693475444822,2.93437676,27253.0,27252.0,0.03861039]
[1693475445053,2.93569676,27253.0,27252.0,0.03861039]
[1693475445209,2.93575676,27253.0,27252.0,0.03861039]
[1693475445418,2.93605676,27253.0,27252.0,0.03861039]
[1693475445612,2.93623676,27253.0,27252.0,0.007]
[1693475445994,2.93653676,27253.0,27252.0,0.007]
[1693475446418,2.93665676,27253.0,27252.0,0.03861039]
[1693475446618,2.93659676,27253.0,27252.0,0.03861039]
[1693475446956,2.93671676,27253.0,27252.0,0.03861039]
[1693475447091,2.93683676,27253.0,27252.0,0.03861039]
[1693475447297,2.93689676,27253.0,27252.0,0.03861039]
[1693475447548,2.93611676,27253.0,27252.0,0.03861039]
[1693475447739,2.93623676,27253.0,27252.0,0.03861039]
[1693475447894,2.93647676,27253.0,27252.0,0.03861039]
[1693475448294,2.93653676,27253.0,27252.0,0.03861039]
[1693475448509,2.93749676,27253.0,27252.0,0.03861039]
[1693475448709,2.93695676,27253.0,27252.0,0.03861039]
[1693475448910,2.93749676,27253.0,27252.0,0.03861039]
[1693475449106,2.93695676,27253.0,27252.0,0.03861039]
[1693475449331,2.93731676,27253.0,27252.0,0.03861039]
[1693475449511,2.93695676,27253.0,27252.0,0.03861039]
[1693475449713,2.93689676,27253.0,27252.0,0.03861039]
[1693475449890,2.93701676,27253.0,27252.0,0.03861039]
[1693475450092,2.93659676,27253.0,27252.0,0.03861039]
[1693475450313,2.93671676,27253.0,27252.0,0.03861039]
[1693475450514,2.93725676,27253.0,27252.0,0.03861039]
[1693475450746,2.93713676,27253.0,27252.0,0.03861039]
[1693475450918,2.93731676,27253.0,27252.0,0.03861039]
[1693475451126,2.93815676,27253.0,27252.0,0.03861039]
[1693475451331,2.93761676,27253.0,27252.0,0.03861039]
[1693475451958,2.93761676,27253.0,27252.0,0.007]
[1693475452312,2.93821676,27253.0,27252.0,0.007]
[1693475452530,2.93761676,27253.0,27252.0,0.007]
[1693475453082,2.93545676,27253.0,27252.0,0.007]
[1693475453287,2.93497676,27253.0,27252.0,0.007]
[1693475453454,2.93551676,27253.0,27252.0,0.007]
[1693475453616,2.93557676,27253.0,27252.0,0.03861039]
[1693475454022,2.93575676,27253.0,27252.0,0.03861039]
[1693475454382,2.93671676,27253.0,27252.0,0.03861039]
[1693475454600,2.93677676,27253.0,27252.0,0.03861039]
[1693475454893,2.93695676,27253.0,27252.0,0.03861039]
[1693475455115,2.93683676,27253.0,27252.0,0.03861039]
[1693475455311,2.93689676,27253.0,27252.0,0.03861039]
[1693475455931,2.93683676,27253.0,27252.0,0.03861039]
[1693475456139,2.93701676,27253.0,27252.0,0.03861039]
[1693475456342,2.93707676,27253.0,27252.0,0.03861039]
[1693475457216,2.93713676,27253.0,27252.0,0.03861039]
[1693475457416,2.93557676,27253.0,27252.0,0.03861039]
[1693475457642,2.93485676,27253.0,27252.0,0.03861039]
[1693475457861,2.93497676,27253.0,27252.0,0.03861039]
[1693475458014,2.93503676,27253.0,27252.0,0.03861039]
[1693475458221,2.93473676,27253.0,27252.0,0.03861039]
[1693475458650,2.93479676,27253.0,27252.0,0.03861039]
[1693475458808,2.93509676,27253.0,27252.0,0.03861039]
[1693475459219,2.93515676,27253.0,27252.0,0.03861039]
[1693475459434,2.93539676,27253.0,27252.0,0.03861039]
[1693475460103,2.93545676,27253.0,27252.0,0.03861039]
[1693475460436,2.93569676,27253.0,27252.0,0.03861039]
[1693475460676,2.93563676,27253.0,27252.0,0.03861039]
[1693475460874,2.93719676,27253.0,27252.0,0.03861039]
[1693475461049,2.93737676,27253.0,27252.0,0.03861039]
[1693475461243,2.91719676,27253.0,27252.0,0.03861039]
[1693475461559,2.91683676,27253.0,27252.0,0.03861039]
[1693475461967,2.91671676,27253.0,27252.0,0.03861039]
[1693475462310,2.91683676,27253.0,27252.0,0.03861039]
[1693475462616,2.91713676,27253.0,27252.0,0.03861039]
[1693475462765,2.91773676,27253.0,27252.0,0.03861039]
[1693475463112,2.91803676,27253.0,27252.0,0.03861039]
[1693475463412,2.91821676,27253.0,27252.0,0.03861039]
[1693475463616,2.91809676,27253.0,27252.0,0.03861039]
[1693475463787,2.91827676,27253.0,27252.0,0.03861039]
[1693475463987,2.91971676,27253.0,27252.0,0.03861039]
[1693475464354,2.91941676,27253.0,27252.0,0.03861039]
[1693475464561,2.91935676,27253.0,27252.0,0.03861039]
[1693475464757,2.91911676,27253.0,27252.0,0.03861039]
[1693475464984,2.91929676,27253.0,27252.0,0.03861039]
[1693475465188,2.91965676,27253.0,27252.0,0.03861039]
[1693475465387,2.92067676,27253.0,27252.0,0.03861039]
[1693475465592,2.92109676,27253.0,27252.0,0.03861039]
[1693475465852,2.92103676,27253.0,27252.0,0.03861039]
[1693475466034,2.92127676,27253.0,27252.0,0.03861039]
[1693475466237,2.92031676,27253.0,27252.0,0.03861039]
[1693475466399,2.92043676,27253.0,27252.0,0.03861039]
[1693475466594,2.92139676,27253.0,27252.0,0.03861039]
[1693475466795,2.92103676,27253.0,27252.0,0.03861039]
[1693475466996,2.92091676,27253.0,27252.0,0.03861039]
[1693475467209,2.92139676,27253.0,27252.0,0.03861039]
[1693475467413,2.92151676,27253.0,27252.0,0.03861039]
[1693475467621,3.04547676,27253.0,27252.0,0.03861039]
[1693475467868,3.04619676,27253.0,27252.0,0.03861039]
[1693475468096,2.92139676,27253.0,27252.0,0.03861039]
[1693475468295,2.92133676,27253.0,27252.0,0.03861039]
[1693475468610,3.04535676,27253.0,27252.0,0.03861039]
[1693475468914,3.04523676,27253.0,27252.0,0.03861039]
[1693475469067,3.04571676,27253.0,27252.0,0.03861039]
[1693475469413,3.04631676,27253.0,27252.0,0.03861039]
[1693475469616,3.04571676,27253.0,27252.0,0.03861039]
[1693475469759,3.04523676,27253.0,27252.0,0.03861039]
[1693475469967,3.04583676,27253.0,27252.0,0.03861039]
[1693475470197,3.04571676,27253.0,27252.0,0.03861039]
[1693475470403,3.01766336,27253.0,27252.0,0.03861039]
[1693475470600,3.01826336,27253.0,27252.0,0.03861039]
[1693475470941,3.01874336,27253.0,27252.0,0.03861039]
[1693475471288,3.01934336,27253.0,27252.0,0.03861039]
[1693475471507,2.99934336,27253.0,27252.0,0.03861039]
[1693475471711,2.99898336,27253.0,27252.0,0.03861039]
[1693475471913,3.00030336,27253.0,27252.0,0.03861039]
[1693475472119,3.00054336,27253.0,27252.0,0.03861039]
[1693475472302,2.99958336,27253.0,27252.0,0.03861039]
[1693475472496,2.99754336,27253.0,27252.0,0.03861039]
[1693475472699,2.99886336,27253.0,27252.0,0.03861039]
[1693475472931,2.99790336,27253.0,27252.0,0.03861039]
[1693475473115,3.00390336,27253.0,27252.0,0.03861039]
[1693475473310,3.00714336,27253.0,27252.0,0.007]
[1693475473469,3.00534336,27253.0,27252.0,0.007]
[1693475473663,3.02130336,27253.0,27252.0,0.007]
[1693475473913,3.02574336,27253.0,27252.0,0.007]
[1693475474117,3.02934336,27253.0,27252.0,0.007]
[1693475474322,3.03066336,27253.0,27252.0,0.007]
[1693475474629,3.02958336,27253.0,27252.0,0.007]
[1693475474829,3.02934336,27253.0,27252.0,0.007]
[1693475475062,3.02982336,27253.0,27252.0,0.007]
[1693475475293,3.3266491,27253.0,27252.0,0.007]
[1693475475467,3.3262891,27253.0,27252.0,0.007]
[1693475475668,3.3274891,27253.0,27252.0,0.007]
[1693475475876,3.3260491,27253.0,27252.0,0.007]
[1693475476079,3.3321691,27253.0,27252.0,0.007]
[1693475476295,3.3316891,27253.0,27252.0,0.007]
[1693475476446,3.3315691,27253.0,27252.0,0.007]
[1693475476655,3.3312091,27253.0,27252.0,0.007]
[1693475476863,3.80782287,27253.0,27252.0,0.007]
[1693475477065,3.81310287,27253.0,27252.0,0.007]
[1693475477266,3.82234287,27253.0,27252.0,0.007]
[1693475477447,3.82462287,27253.0,27252.0,0.007]
[1693475477834,3.83038287,27253.0,27252.0,0.007]
[1693475478010,3.97879887,27253.0,27252.0,0.007]
[1693475478210,3.97855887,27253.0,27252.0,0.007]
[1693475478429,3.97171887,27253.0,27252.0,0.007]
[1693475478771,3.97591887,27253.0,27252.0,0.007]
[1693475478945,3.97207887,27253.0,27252.0,0.007]
[1693475479152,3.97195887,27253.0,27252.0,0.007]
[1693475479357,3.97687887,27253.0,27252.0,0.007]
[1693475479564,3.97939887,27253.0,27252.0,0.007]
[1693475479770,3.97723887,27253.0,27252.0,0.007]
[1693475479979,3.97711887,27253.0,27252.0,0.007]
[1693475480187,3.97699887,27253.0,27252.0,0.007]
[1693475480382,3.97435887,27253.0,27252.0,0.007]
[1693475480592,3.97507887,27253.0,27252.0,0.007]
[1693475480794,3.97483887,27253.0,27252.0,0.007]
[1693475480997,3.97711887,27253.0,27252.0,0.007]
[1693475481203,4.14683887,27253.0,27252.0,0.007]
[1693475481405,4.14803887,27253.0,27252.0,0.007]
[1693475481921,4.14791887,27253.0,27252.0,0.007]
[1693475482141,4.16003887,27253.0,27252.0,0.007]
[1693475482345,4.16027887,27253.0,27252.0,0.007]
[1693475482603,4.16807887,27253.0,27252.0,0.007]
[1693475482783,4.16507887,27253.0,27252.0,0.007]
[1693475483033,4.16483887,27253.0,27252.0,0.007]
[1693475483235,4.16459887,27253.0,27252.0,0.007]
[1693475483440,4.89858287,27253.0,27252.0,0.007]
[1693475483614,4.90002287,27253.0,27252.0,0.007]
[1693475483849,4.89738287,27253.0,27252.0,0.007]
[1693475484050,4.89702287,27253.0,27252.0,0.007]
[1693475484429,4.89678287,27253.0,27252.0,0.007]
[1693475484733,4.89630287,27253.0,27252.0,0.007]
[1693475484865,4.8055491,27253.0,27252.0,0.007]
[1693475485066,4.8113091,27253.0,27252.0,0.007]
[1693475485326,4.8128691,27253.0,27252.0,0.007]
[1693475485544,4.7979091,27253.0,27252.0,0.007]
[1693475485710,4.7986291,27253.0,27252.0,0.007]
[1693475485911,4.7975491,27253.0,27252.0,0.007]
[1693475486119,4.7986291,27253.0,27252.0,0.007]
[1693475486317,4.7993491,27253.0,27252.0,0.007]
[1693475486568,4.8007891,27253.0,27252.0,0.007]
[1693475486788,4.7964191,27253.0,27252.0,0.007]
[1693475486960,4.7965391,27253.0,27252.0,0.007]
[1693475487159,4.7956991,27253.0,27252.0,0.007]
[1693475487662,4.9117125,27253.0,27252.0,0.007]
[1693475487871,5.0814325,27253.0,27252.0,0.007]
[1693475488020,5.0852125,27253.0,27252.0,0.007]
[1693475488223,5.0853925,27253.0,27252.0,0.007]
[1693475488427,5.0490325,27253.0,27252.0,0.003]
[1693475488636,2.935832,27250.0,27246.0,0.1561]
[1693475488906,0.17620892,27247.0,27245.0,0.19659625]
[1693475489121,1.23228777,27246.0,27245.0,0.00099625]
[1693475489323,2.04745977,27246.0,27243.0,0.754129]
[1693475489531,0.08810075,27245.0,27243.0,0.754129]
[1693475489737,0.36607911,27244.0,27243.0,0.754129]
[1693475490572,0.36607911,27244.0,27243.0,0.78264943]
[1693475490985,0.37007911,27244.0,27243.0,0.81264943]
[1693475491584,0.37407911,27244.0,27243.0,0.08152043]
[1693475500131,0.37407911,27244.0,27243.0,0.06152043]
[1693475502072,0.37407911,27244.0,27243.0,0.08152043]
[1693475507195,0.37407911,27244.0,27243.0,0.06152043]
[1693475507796,0.37407911,27244.0,27243.0,0.08152043]
[1693475507974,0.37407911,27244.0,27243.0,0.06152043]
[1693475509353,0.37407911,27244.0,27243.0,0.08152043]
[1693475509761,0.37407911,27244.0,27243.0,0.06152043]
[1693475513316,0.46217986,27244.0,27243.0,0.06152043]
[1693475524256,2.00479186,27244.0,27243.0,0.06152043]
[1693475524456,2.84068603,27244.0,27243.0,0.06152043]
[1693475524668,2.84503954,27244.0,27243.0,0.06152043]
[1693475524882,2.84575954,27244.0,27243.0,0.06152043]
[1693475525063,2.84125954,27244.0,27243.0,0.06152043]
[1693475525264,2.84407954,27244.0,27243.0,0.06152043]
[1693475525484,2.84551954,27244.0,27243.0,0.06152043]
[1693475525695,2.84001954,27244.0,27243.0,0.05852043]
[1693475525903,2.84001954,27244.0,27243.0,0.03152043]
[1693475525904,2.83905954,27244.0,27243.0,0.03152043]
[1693475526106,2.84319954,27244.0,27243.0,0.03152043]
[1693475526309,2.84039954,27244.0,27243.0,0.05552043]
[1693475526531,2.83841954,27244.0,27243.0,0.02852043]
[1693475526765,2.84823954,27244.0,27243.0,0.02952043]
[1693475526977,2.86011954,27244.0,27243.0,0.003]
[1693475527187,2.86023954,27244.0,27243.0,0.03091847]
[1693475527390,2.85999954,27244.0,27243.0,0.03091847]
[1693475527571,2.85981954,27244.0,27243.0,0.03091847]
[1693475527771,2.85969954,27244.0,27243.0,0.03091847]
[1693475527976,2.85957954,27244.0,27243.0,0.03091847]
[1693475528202,3.07797758,27244.0,27243.0,0.03091847]
[1693475528512,3.07467758,27244.0,27243.0,0.03091847]
[1693475528661,3.07617758,27244.0,27243.0,0.03091847]
[1693475528870,2.85441954,27244.0,27243.0,0.03091847]
[1693475529074,2.85435954,27244.0,27243.0,0.03091847]
[1693475529282,2.85387954,27244.0,27243.0,0.03091847]
[1693475529648,3.07269758,27244.0,27243.0,0.03091847]
[1693475529802,2.85231954,27244.0,27243.0,0.03091847]
[1693475530006,2.85273954,27244.0,27243.0,0.03091847]
[1693475530224,2.85279954,27244.0,27243.0,0.03091847]
[1693475530632,2.85261954,27244.0,27243.0,0.03091847]
[1693475530833,2.85291954,27244.0,27243.0,0.03091847]
[1693475531121,2.85303954,27244.0,27243.0,0.03091847]
[1693475531328,2.85291954,27244.0,27243.0,0.03091847]
[1693475531827,2.85447954,27244.0,27243.0,0.03091847]
[1693475532026,2.85453954,27244.0,27243.0,0.03091847]
[1693475532431,2.85459954,27244.0,27243.0,0.03091847]
[1693475532650,2.85453954,27244.0,27243.0,0.03091847]
[1693475532951,2.85435954,27244.0,27243.0,0.03091847]
[1693475533159,2.85741954,27244.0,27243.0,0.03091847]
[1693475533378,2.85699954,27244.0,27243.0,0.03091847]
[1693475533579,2.85855954,27244.0,27243.0,0.03091847]
[1693475533768,2.90119515,27244.0,27243.0,0.03091847]
[1693475534066,3.07747592,27244.0,27243.0,0.03091847]
[1693475534607,3.07741592,27244.0,27243.0,0.03091847]
[1693475534813,3.07771592,27244.0,27243.0,0.03091847]
[1693475535070,3.07753592,27244.0,27243.0,0.03091847]
[1693475535230,3.07885592,27244.0,27243.0,0.03091847]
[1693475535428,3.07741592,27244.0,27243.0,0.03091847]
[1693475535706,3.07735592,27244.0,27243.0,0.03091847]
[1693475535879,3.07903592,27244.0,27243.0,0.03091847]
[1693475536107,3.07933592,27244.0,27243.0,0.03091847]
[1693475536218,3.07801592,27244.0,27243.0,0.03091847]
[1693475536425,3.07771592,27244.0,27243.0,0.03091847]
[1693475536620,3.07777592,27244.0,27243.0,0.03091847]
[1693475536825,2.34342992,27244.0,27243.0,0.03091847]
[1693475537025,2.34384992,27244.0,27243.0,0.03091847]
[1693475537251,2.34174992,27244.0,27243.0,0.03091847]
[1693475537491,2.33124992,27244.0,27243.0,0.03091847]
[1693475537689,2.33070992,27244.0,27243.0,0.03091847]
[1693475537920,2.17098915,27244.0,27243.0,0.03091847]
[1693475538120,2.17170915,27244.0,27243.0,0.03091847]
[1693475538295,2.34790969,27244.0,27243.0,0.03091847]
[1693475538652,2.34796969,27244.0,27243.0,0.03091847]
[1693475538857,2.33818969,27244.0,27243.0,0.03091847]
[1693475539083,2.33770969,27244.0,27243.0,0.03091847]
[1693475539259,2.33752969,27244.0,27243.0,0.03091847]
[1693475539480,2.33764969,27244.0,27243.0,0.03091847]
[1693475539687,2.33812969,27244.0,27243.0,0.03091847]
[1693475539889,2.33926969,27244.0,27243.0,0.03091847]
[1693475540267,2.33812969,27244.0,27243.0,0.03091847]
[1693475540475,2.33704969,27244.0,27243.0,0.03091847]
[1693475540674,2.33782969,27244.0,27243.0,0.03091847]
[1693475541124,2.33746969,27244.0,27243.0,0.03091847]
[1693475541407,2.11709165,27244.0,27243.0,0.03091847]
[1693475541851,2.11799165,27244.0,27243.0,0.03091847]
[1693475542317,2.11703165,27244.0,27243.0,0.03091847]
[1693475543270,2.11775165,27244.0,27243.0,0.03091847]
[1693475543478,2.11781165,27244.0,27243.0,0.03091847]
[1693475543674,2.11763165,27244.0,27243.0,0.03091847]
[1693475543882,2.11769165,27244.0,27243.0,0.03091847]
[1693475544034,2.11775165,27244.0,27243.0,0.03091847]
[1693475544244,2.11733165,27244.0,27243.0,0.03091847]
[1693475544449,2.11247165,27244.0,27243.0,0.03091847]
[1693475544644,2.11211165,27244.0,27243.0,0.03091847]
[1693475544872,2.11115165,27244.0,27243.0,0.03091847]
[1693475545193,2.11145165,27244.0,27243.0,0.03091847]
[1693475545367,2.11139165,27244.0,27243.0,0.03091847]
[1693475545577,2.11307165,27244.0,27243.0,0.03091847]
[1693475545779,2.11313165,27244.0,27243.0,0.03091847]
[1693475546097,2.11325165,27244.0,27243.0,0.03091847]
[1693475546257,2.11301165,27244.0,27243.0,0.03091847]
[1693475546431,2.11295165,27244.0,27243.0,0.03091847]
[1693475546645,2.11337165,27244.0,27243.0,0.03091847]
[1693475546847,2.11343165,27244.0,27243.0,0.03091847]
[1693475547048,2.11361165,27244.0,27243.0,0.03091847]
[1693475547250,2.11379165,27244.0,27243.0,0.03091847]
[1693475547449,2.11421165,27244.0,27243.0,0.03091847]
[1693475547712,2.11397165,27244.0,27243.0,0.03091847]
[1693475547912,2.11433165,27244.0,27243.0,0.03091847]
[1693475548154,2.11415165,27244.0,27243.0,0.03091847]
[1693475548334,2.11403165,27244.0,27243.0,0.03091847]
[1693475548531,2.11355165,27244.0,27243.0,0.03091847]
[1693475548736,2.11433165,27244.0,27243.0,0.03091847]
[1693475548941,2.11439165,27244.0,27243.0,0.03091847]
[1693475549618,2.11445165,27244.0,27243.0,0.03091847]
[1693475549815,2.11553165,27244.0,27243.0,0.03091847]
[1693475550022,2.03255165,27244.0,27243.0,0.03091847]
[1693475550523,2.09681165,27244.0,27243.0,0.03091847]
[1693475550770,2.11361165,27244.0,27243.0,0.03091847]
[1693475550949,2.11607165,27244.0,27243.0,0.03091847]
[1693475551303,2.11613165,27244.0,27243.0,0.03091847]
[1693475551535,2.11619165,27244.0,27243.0,0.03091847]
[1693475551947,2.11625165,27244.0,27243.0,0.03091847]
[1693475552147,2.11631165,27244.0,27243.0,0.03091847]
[1693475552441,2.11593714,27244.0,27243.0,0.03091847]
[1693475552642,2.11599714,27244.0,27243.0,0.03091847]
[1693475552987,2.11611714,27244.0,27243.0,0.03091847]
[1693475553285,2.11617714,27244.0,27243.0,0.03091847]
[1693475553423,2.11593714,27244.0,27243.0,0.03091847]
[1693475553622,2.11605714,27244.0,27243.0,0.03091847]
[1693475554109,2.11647714,27244.0,27243.0,0.03091847]
[1693475554313,2.11653714,27244.0,27243.0,0.03091847]
[1693475554539,2.11647714,27244.0,27243.0,0.03091847]
[1693475554671,2.11755714,27244.0,27243.0,0.03091847]
[1693475555070,2.33762468,27244.0,27243.0,0.03091847]
[1693475555388,2.33792468,27244.0,27243.0,0.03091847]
[1693475555594,2.33846468,27244.0,27243.0,0.03091847]
[1693475555962,2.33894468,27244.0,27243.0,0.03091847]
[1693475556174,2.33846468,27244.0,27243.0,0.03091847]
[1693475556350,2.33936468,27244.0,27243.0,0.03091847]
[1693475556579,2.33942468,27244.0,27243.0,0.03091847]
[1693475556758,2.33858468,27244.0,27243.0,0.03091847]
[1693475556891,2.33864468,27244.0,27243.0,0.03091847]
[1693475557092,2.33870468,27244.0,27243.0,0.03091847]
[1693475557295,2.33912468,27244.0,27243.0,0.03091847]
[1693475557493,2.33840468,27244.0,27243.0,0.03091847]
[1693475557957,2.34452468,27244.0,27243.0,0.03091847]
[1693475558115,2.34692468,27244.0,27243.0,0.03091847]
[1693475558375,2.34368468,27244.0,27243.0,0.03091847]
[1693475558524,2.34380468,27244.0,27243.0,0.03091847]
[1693475558735,2.34494468,27244.0,27243.0,0.03091847]
[1693475558908,2.34542468,27244.0,27243.0,0.03091847]
[1693475559110,2.34548468,27244.0,27243.0,0.03091847]
[1693475559311,2.17073865,27244.0,27243.0,0.03091847]
[1693475559516,2.16767865,27244.0,27243.0,0.03091847]
[1693475559716,2.16527865,27244.0,27243.0,0.03091847]
[1693475560580,2.17421865,27244.0,27243.0,0.03091847]
[1693475560919,2.17457865,27244.0,27243.0,0.03091847]
[1693475561093,2.17403865,27244.0,27243.0,0.03091847]
[1693475561293,2.17319865,27244.0,27243.0,0.03091847]
[1693475561454,2.17403865,27244.0,27243.0,0.03091847]
[1693475561665,2.17439865,27244.0,27243.0,0.03091847]
[1693475561861,2.17421865,27244.0,27243.0,0.03091847]
[1693475562065,2.17415865,27244.0,27243.0,0.03091847]
[1693475562273,2.17409865,27244.0,27243.0,0.03091847]
[1693475562477,2.17397865,27244.0,27243.0,0.03091847]
[1693475562671,2.17091865,27244.0,27243.0,0.03091847]
[1693475562900,2.16179865,27244.0,27243.0,0.03091847]
[1693475563224,2.16167865,27244.0,27243.0,0.03091847]
[1693475563426,2.16065865,27244.0,27243.0,0.03091847]
[1693475563630,2.16059865,27244.0,27243.0,0.03091847]
[1693475563837,2.16065865,27244.0,27243.0,0.03091847]
[1693475564037,2.16077865,27244.0,27243.0,0.03091847]
[1693475564246,2.16089865,27244.0,27243.0,0.03091847]
[1693475564457,2.16101865,27244.0,27243.0,0.03091847]
[1693475564875,2.16107865,27244.0,27243.0,0.03091847]
[1693475565576,2.16197865,27244.0,27243.0,0.02591847]
[1693475565894,1.42835265,27244.0,27243.0,0.02591847]
[1693475566296,1.42841265,27244.0,27243.0,0.02591847]
[1693475566447,1.42857414,27244.0,27243.0,0.02591847]
[1693475566649,1.42839414,27244.0,27243.0,0.02591847]
[1693475566860,1.42845414,27244.0,27243.0,0.02591847]
[1693475567053,1.42677414,27244.0,27243.0,0.02591847]
[1693475567454,1.42683414,27244.0,27243.0,0.02591847]
[1693475567873,1.42689414,27244.0,27243.0,0.02591847]
[1693475568055,1.20648511,27244.0,27243.0,0.02591847]
[1693475568450,1.20660511,27244.0,27243.0,0.02591847]
[1693475568657,1.20648511,27244.0,27243.0,0.02591847]
[1693475568975,1.20654511,27244.0,27243.0,0.02591847]
[1693475569151,1.20648511,27244.0,27243.0,0.02591847]
[1693475569360,1.20588511,27244.0,27243.0,0.02591847]
[1693475569658,1.20450511,27244.0,27243.0,0.02591847]
[1693475569856,1.20456511,27244.0,27243.0,0.02591847]
[1693475570201,1.20480511,27244.0,27243.0,0.02591847]
[1693475570601,1.20486511,27244.0,27243.0,0.02591847]
[1693475570797,1.20480511,27244.0,27243.0,0.02591847]
[1693475571244,1.20474511,27244.0,27243.0,0.02591847]
[1693475571444,1.20630511,27244.0,27243.0,0.02591847]
[1693475571605,1.20642511,27244.0,27243.0,0.02591847]
[1693475571809,1.20720511,27244.0,27243.0,0.02591847]
[1693475572012,1.20762511,27244.0,27243.0,0.02591847]
[1693475572205,1.20744511,27244.0,27243.0,0.02591847]
[1693475572411,1.20762511,27244.0,27243.0,0.02591847]
[1693475572634,1.20624511,27244.0,27243.0,0.02591847]
[1693475572829,1.20630511,27244.0,27243.0,0.02591847]
[1693475573036,1.20636511,27244.0,27243.0,0.02591847]
[1693475573210,1.20648511,27244.0,27243.0,0.02591847]
[1693475573466,1.21326511,27244.0,27243.0,0.02591847]
[1693475573638,1.21212511,27244.0,27243.0,0.02591847]
[1693475573837,1.21200511,27244.0,27243.0,0.02591847]
[1693475574042,1.21182511,27244.0,27243.0,0.02591847]
[1693475574226,1.21170511,27244.0,27243.0,0.02591847]
[1693475574627,1.21272511,27244.0,27243.0,0.02591847]
[1693475574830,1.21020511,27244.0,27243.0,0.02591847]
[1693475575175,1.20804511,27244.0,27243.0,0.02591847]
[1693475575312,1.20822511,27244.0,27243.0,0.02591847]
[1693475575510,1.20762511,27244.0,27243.0,0.02591847]
[1693475575713,1.20798511,27244.0,27243.0,0.02591847]
[1693475576171,1.20804511,27244.0,27243.0,0.02591847]
[1693475576438,1.20798511,27244.0,27243.0,0.02591847]
[1693475576621,1.21116511,27244.0,27243.0,0.02591847]
[1693475576839,1.21104511,27244.0,27243.0,0.02591847]
[1693475576974,1.21110511,27244.0,27243.0,0.02591847]
[1693475577173,1.21194511,27244.0,27243.0,0.02591847]
[1693475577358,1.21296511,27244.0,27243.0,0.02591847]
[1693475577558,1.21242511,27244.0,27243.0,0.02591847]
[1693475577820,1.21230511,27244.0,27243.0,0.02591847]
[1693475578019,1.21254511,27244.0,27243.0,0.02591847]
[1693475578224,1.21260511,27244.0,27243.0,0.02591847]
[1693475578450,1.21248511,27244.0,27243.0,0.02591847]
[1693475578656,1.21362511,27244.0,27243.0,0.02591847]
[1693475578791,1.21422511,27244.0,27243.0,0.02591847]
[1693475578991,1.21770511,27244.0,27243.0,0.02591847]
[1693475579434,1.21776511,27244.0,27243.0,0.02591847]
[1693475579661,1.21782511,27244.0,27243.0,0.02591847]
[1693475579859,1.21122511,27244.0,27243.0,0.02591847]
[1693475580037,1.21290511,27244.0,27243.0,0.02591847]
[1693475580274,1.21482511,27244.0,27243.0,0.02591847]